fUSD/lending_fUSD_20251217
["ID","MTS","AMOUNT","RATE_DAILY","PERIOD"]
[398907531,1765986638925,-500.0,0.00015287,2]
[398907532,1765986638936,-202.54588871,0.00015287,2]
[398907533,1765986638945,-290.36036012,0.00015287,2]
[398907534,1765986638955,-500.0,0.00015287,2]
[398907535,1765986638966,-314.23765112,0.00015287,2]
[398907536,1765986638976,-300.0,0.00015287,2]
[398907537,1765986638986,-151.0,0.00015288,2]
[398907538,1765986638996,-151.0,0.00015288,2]
[398907539,1765986639006,-151.0,0.00015288,2]
[398907540,1765986639016,-151.0,0.00015288,2]
[398907541,1765986639026,-151.0,0.00015288,2]
[398907542,1765986639036,-151.0,0.00015288,2]
[398907543,1765986639046,-151.0,0.00015288,2]
[398907544,1765986639055,-151.0,0.00015288,2]
[398907545,1765986639065,-151.0,0.00015288,2]
[398907546,1765986639074,-151.0,0.00015288,2]
[398907548,1765986639084,-151.0,0.00015288,2]
[398907550,1765986639094,-151.0,0.00015288,2]
[398907551,1765986639104,-151.0,0.00015288,2]
[398907553,1765986639113,-151.0,0.00015288,2]
[398907555,1765986639123,-153.63110906,0.00015288,2]
[398907557,1765986639133,-151.0,0.00015288,2]
[398907559,1765986639146,-151.0,0.00015288,2]
[398907562,1765986639156,-151.0,0.00015288,2]
[398907564,1765986639166,-200.0,0.00015288,2]
[398907566,1765986639175,-151.0,0.00015288,2]
[398907568,1765986639184,-151.0,0.00015288,2]
[398907570,1765986639194,-500.0,0.00015288,2]
[398907571,1765986639203,-151.0,0.00015288,2]
[398907573,1765986639213,-500.0,0.00015288,2]
[398907576,1765986639223,-151.0,0.00015288,2]
[398907578,1765986639234,-500.0,0.00015288,2]
[398907580,1765986639244,-151.0,0.00015288,2]
[398907582,1765986639254,-500.0,0.00015288,2]
[398907584,1765986639265,-500.0,0.00015288,2]
[398907586,1765986639274,-151.0,0.00015288,2]
[398907588,1765986639284,-500.0,0.00015288,2]
[398907590,1765986639294,-500.0,0.00015288,2]
[398907591,1765986639303,-425.06159563,0.00015288,2]
[398907592,1765986639314,-200.0,0.00015288,2]
[398907593,1765986639323,-500.0,0.00015288,2]
[398907594,1765986639332,-500.0,0.00015288,2]
[398907595,1765986639343,-500.0,0.00015288,2]
[398907596,1765986639353,-500.0,0.00015288,2]
[398907597,1765986639362,-500.0,0.00015288,2]
[398907598,1765986639372,-500.0,0.00015288,2]
[398907599,1765986639382,-500.0,0.00015288,2]
[398907600,1765986639396,-200.0,0.00015288,2]
[398907601,1765986639405,-716.73,0.00015288,2]
[398907602,1765986639415,-1000.0,0.00015296,2]
[398907603,1765986639425,-500.0,0.00015296,2]
[398907604,1765986639435,-1687.567,0.00015296,2]
[398907605,1765986639444,-500.0,0.00015296,2]
[398907606,1765986639454,-500.0,0.00015296,2]
[398907607,1765986639463,-500.0,0.00015296,2]
[398907608,1765986639473,-499.99999999,0.00015296,2]
[398907609,1765986639482,-1000.0,0.00015296,2]
[398907610,1765986639492,-1000.0,0.00015296,2]
[398907611,1765986639502,-1000.0,0.00015296,2]
[398907612,1765986639513,-1000.0,0.00015296,2]
[398907613,1765986639522,-1000.0,0.00015296,2]
[398907614,1765986639532,-1000.0,0.00015296,2]
[398907615,1765986639542,-1000.0,0.00015296,2]
[398907616,1765986639552,-1000.0,0.00015296,2]
[398907617,1765986639561,-1000.0,0.00015296,2]
[398907618,1765986639571,-1000.0,0.00015296,2]
[398907619,1765986639581,-225.73772161,0.00015296,2]
[398907620,1765986639591,-500.0,0.00015296,2]
[398907621,1765986639600,-500.0,0.00015296,2]
[398907622,1765986639609,-297.39024178,0.00015297,2]
[398907623,1765986639619,-163.48661169,0.00015297,2]
[398907624,1765986639630,-500.0,0.00015397,2]
[398907625,1765986639646,-500.0,0.00015397,2]
[398907626,1765986639655,-500.0,0.00015397,2]
[398907627,1765986639665,-500.0,0.00015397,2]
[398907628,1765986639674,-1000.0,0.00015399,2]
[398907629,1765986639684,-1707.53,0.00015479,2]
[398907630,1765986639695,-159.1,0.00015561,2]
[398907631,1765986639704,-716.73,0.00015562,2]
[398907632,1765986639714,-500.0,0.0001557,2]
[398907633,1765986639725,-1142.0,0.0001569,2]
[398907635,1765986639735,-437.48915318,0.00015691,2]
[398907636,1765986639746,-453.0,0.00015702,2]
[398907637,1765986639755,-197014.9735369,0.00015718,2]
[398907638,1765986639765,-439.0,0.00015731,2]
[398907639,1765986639775,-500.0,0.00015799,2]
[398907640,1765986639785,-352.3278,0.000158,2]
[398907641,1765986639795,-200.0,0.00015836,2]
[398907642,1765986639805,-500.0,0.00015836,2]
[398907643,1765986639815,-200.0,0.00015836,2]
[398907644,1765986639825,-716.73,0.00015836,2]
[398907645,1765986639835,-500.0,0.00015844,2]
[398907646,1765986639845,-313.44101952,0.000159,2]
[398907647,1765986639855,-313.44101952,0.000159,2]
[398907648,1765986639865,-300.0,0.00016027,2]
[398907649,1765986639875,-250.0,0.00016027,2]
[398907650,1765986639885,-250.0,0.00016027,2]
[398907651,1765986639903,-300.0,0.00016027,2]
[398907652,1765986639912,-195.0,0.00016027,2]
[398907653,1765986639922,-160.13872607,0.00016048,2]
[398907654,1765986639933,-716.73,0.0001611,2]
[398907655,1765986639943,-150.99,0.00016116,2]
[398907656,1765986639953,-500.0,0.00016118,2]
[398907657,1765986639962,-500.0,0.00016384,2]
[398907658,1765986639972,-200.0,0.00016384,2]
[398907659,1765986639981,-716.73,0.00016384,2]
[398907660,1765986639990,-599.97707901,0.00016392,2]
[398907661,1765986640000,-510.0,0.00016418,2]
[398907662,1765986640010,-500.0,0.00016438,2]
[398907663,1765986640019,-500.0,0.00016438,2]
[398907664,1765986640029,-564.40575635,0.00016438,2]
[398907665,1765986640039,-15266.64,0.00016438,2]
[398907666,1765986640050,-18519.5553977,0.00016474,2]
[398907667,1765986640060,-151.0,0.0001658,2]
[398907668,1765986640070,-49380.3040463,0.00016583,2]
[398907669,1765986640080,-1437.8498508,0.00016583,2]
[398907670,1765986640089,-19254.5375798,0.00016583,2]
[398907671,1765986640099,-300.0,0.00016602,2]
[398907672,1765986640109,-300.0,0.00016602,2]
[398907673,1765986640119,-200.0,0.00016602,2]
[398907674,1765986640128,-300.0,0.00016602,2]
[398907675,1765986640139,-420.0,0.00016627,2]
[398907676,1765986640157,-1200.0,0.00016628,2]
[398907677,1765986640167,-716.73,0.00016658,2]
[398907679,1765986640176,-159.1,0.00016673,2]
[398907681,1765986640187,-9505.97519957,0.00016697,2]
[398907683,1765986640197,-1680.0,0.00016709,2]
[398907685,1765986640207,-7516.06764099,0.00016824,2]
[398907687,1765986640217,-1783.59422052,0.00016839,2]
[398907689,1765986640227,-630.6042116,0.00016861,2]
[398907691,1765986640241,-4954.1272749,0.00016861,2]
[398907693,1765986640251,-204.63597997,0.00016868,2]
[398907695,1765986640266,-395.31347646,0.000169,2]
[398907697,1765986640277,-160.13872607,0.000169,2]
[398907699,1765986640287,-716.73,0.00016932,2]
[398907701,1765986640297,-1904.15166827,0.00016944,2]
[398907703,1765986640308,-500.0,0.00016973,2]
[398907705,1765986640318,-500.0,0.00016973,2]
[398907707,1765986640329,-500.0,0.00016973,2]
[398907709,1765986640340,-150.0,0.00016986,2]
[398907711,1765986640350,-500.0,0.00016986,2]
[398907713,1765986640360,-500.0,0.00016999,2]
[398907715,1765986640370,-500.0,0.00016999,2]
[398907717,1765986640379,-336.07319516,0.00016999,2]
[398907719,1765986640400,-640740.99141455,0.00017,2]
[398907721,1765986640411,-3500.0,0.00017,2]
[398907723,1765986640421,-250.0,0.00017,2]
[398907725,1765986640431,-200.0,0.00017,2]
[398907726,1765986640441,-481.46730423,0.00017172,2]
[398907727,1765986640451,-1098.0,0.00017182,2]
[398907728,1765986640461,-716.79,0.00017205,2]
[398907729,1765986640470,-500.0,0.0001726,3]
[398907730,1765986640479,-500.0,0.00017318,2]
[398907731,1765986640489,-1000.0,0.00017324,2]
[398907732,1765986640498,-166.66,0.00017394,2]
[398907733,1765986640507,-1600.0,0.00017491,2]
[398907734,1765986640516,-1000.0,0.00017521,2]
[398907735,1765986640525,-1000.0,0.00017521,2]
[398907736,1765986640534,-500.0,0.00017534,4]
[398907738,1765986640545,-181.0,0.00017626,2]
[398907740,1765986640555,-403.0,0.000177,5]
[398907742,1765986640565,-500.0,0.00017727,2]
[398907744,1765986640574,-500.0,0.00017727,6]
[398907746,1765986640584,-151.12198166,0.00017772,2]
[398907748,1765986640593,-159.1,0.00017784,2]
[398907750,1765986640603,-500.0,0.00017808,5]
[398907752,1765986640612,-730.28,0.00017808,2]
[398907754,1765986640622,-730.28,0.00017808,2]
[398907756,1765986640636,-730.28,0.00017808,2]
[398907758,1765986640655,-730.28,0.00017808,2]
[398907760,1765986640665,-730.28,0.00017808,2]
[398907762,1765986640676,-730.28,0.00017808,2]
[398907765,1765986640692,-730.28,0.00017808,2]
[398907767,1765986640707,-1607.0,0.00017867,2]
[398907769,1765986640719,-612.0,0.00017867,2]
[398907771,1765986640731,-3453.0,0.00017867,2]
[398907774,1765986640742,-1325.0,0.00017867,2]
[398907776,1765986640752,-1261.0,0.00017867,2]
[398907778,1765986640762,-564.0,0.00017867,2]
[398907780,1765986640773,-911.0,0.00017867,2]
[398907782,1765986640785,-1197.0,0.00017867,2]
[398907784,1765986640796,-250.0,0.00017867,2]
[398907786,1765986640805,-2427.0,0.00017867,2]
[398907788,1765986640816,-6524.0,0.00017867,2]
[398907796,1765986641239,-11498.44893353,0.00017999,2]
[398907797,1765986641259,-730.28,0.00017999,2]
[398907798,1765986641269,-16350.82229886,0.00018,2]
[398907799,1765986641279,-102025.71622372,0.00018,2]
[398907800,1765986641289,-12325.12199996,0.00018,2]
[398907801,1765986641298,-169.23710816,0.00018042,2]
[398907802,1765986641308,-1500.0,0.00018068,2]
[398907803,1765986641318,-1500.0,0.00018068,2]
[398907804,1765986641327,-503.84,0.00018082,6]
[398907805,1765986641336,-1000.0,0.00018082,2]
[398907806,1765986641346,-587.0,0.00018193,2]
[398907807,1765986641355,-1437.8498508,0.00018273,2]
[398907808,1765986641364,-10000.0,0.000183,2]
[398907809,1765986641373,-779.0,0.00018368,2]
[398907810,1765986641382,-2351.0,0.00018376,2]
[398907811,1765986641397,-779.0,0.00018391,2]
[398907812,1765986641406,-779.0,0.00018446,2]
[398907813,1765986641416,-779.0,0.00018514,2]
[398907814,1765986641425,-779.0,0.00018524,2]
[398907815,1765986641435,-7516.06764099,0.00018549,2]
[398907816,1765986641444,-153.0,0.00018555,2]
[398907817,1765986641454,-4954.1272749,0.00018579,2]
[398907818,1765986641463,-300.0,0.00018598,2]
[398907819,1765986641473,-533.88981491,0.00018598,2]
[398907820,1765986641482,-2112.0,0.00018598,2]
[398907821,1765986641491,-476.0,0.00018598,2]
[398907822,1765986641506,-493.00801026,0.00018598,2]
[398907823,1765986641517,-615.80196843,0.00018598,2]
[398907824,1765986641527,-1176.31516341,0.00018616,2]
[398907825,1765986641536,-2000.0,0.00018616,2]
[398907826,1765986641547,-11018.23515,0.00018685,2]
[398907827,1765986641556,-4296.2680537,0.00018685,2]
[398907828,1765986641567,-779.0,0.00018759,2]
[398907829,1765986641576,-1000.0,0.0001876,2]
[398907830,1765986641586,-500.0,0.00018773,2]
[398907831,1765986641596,-500.0,0.00018773,2]
[398907832,1765986641606,-500.0,0.00018773,2]
[398907833,1765986641616,-500.0,0.00018773,2]
[398907834,1765986641626,-500.0,0.00018773,2]
[398907835,1765986641636,-500.0,0.00018773,2]
[398907836,1765986641652,-500.0,0.00018773,2]
[398907837,1765986641662,-500.0,0.00018773,2]
[398907838,1765986641671,-162.96288019,0.00018773,2]
[398907839,1765986641680,-500.0,0.00018773,2]
[398907840,1765986641690,-500.0,0.00018773,2]
[398907841,1765986641700,-500.0,0.00018773,2]
[398907842,1765986641709,-500.0,0.00018773,2]
[398907843,1765986641719,-500.0,0.00018773,2]
[398907844,1765986641731,-500.0,0.00018773,2]
[398907845,1765986641741,-500.0,0.00018773,2]
[398907846,1765986641751,-500.0,0.00018773,2]
[398907847,1765986641761,-500.0,0.00018773,2]
[398907848,1765986641771,-500.0,0.00018773,2]
[398907849,1765986641781,-500.0,0.00018773,2]
[398907850,1765986641792,-500.0,0.00018773,2]
[398907851,1765986641802,-500.0,0.00018773,2]
[398907852,1765986641815,-500.0,0.00018773,2]
[398907853,1765986641829,-500.0,0.00018773,2]
[398907854,1765986641839,-340.19399092,0.00018773,2]
[398907855,1765986641848,-500.0,0.00018773,2]
[398907856,1765986641858,-500.0,0.00018773,2]
[398907857,1765986641867,-565.78797354,0.00018773,2]
[398907858,1765986641877,-500.0,0.00018773,2]
[398907859,1765986641887,-500.0,0.00018773,2]
[398907860,1765986641906,-500.0,0.00018773,2]
[398907861,1765986641916,-500.0,0.00018773,2]
[398907862,1765986641926,-504.05376644,0.00018773,2]
[398907863,1765986641936,-500.0,0.00018773,2]
[398907864,1765986641946,-500.0,0.00018773,2]
[398907865,1765986641956,-498.08794248,0.00018773,2]
[398907866,1765986641966,-500.0,0.00018773,2]
[398907867,1765986641977,-150.91,0.000188,2]
[398907868,1765986641988,-150.91,0.000188,2]
[398907869,1765986641998,-150.91,0.000188,2]
[398907870,1765986642008,-150.91,0.000188,2]
[398907871,1765986642018,-150.91,0.000188,2]
[398907872,1765986642029,-150.91,0.000188,2]
[398907873,1765986642039,-150.91,0.000188,2]
[398907874,1765986642049,-150.91,0.000188,2]
[398907875,1765986642059,-779.0,0.00018886,2]
[398907876,1765986642069,-779.0,0.00018891,2]
[398907877,1765986642079,-159.1,0.00018896,2]
[398907878,1765986642089,-500.59058861,0.000189,3]
[398907879,1765986642099,-779.0,0.0001897,2]
[398907880,1765986642109,-209.36442742,0.00018973,2]
[398907881,1765986642119,-779.0,0.00018976,2]
[398907882,1765986642130,-779.0,0.00018982,2]
[398907883,1765986642146,-150.91,0.0001899,2]
[398907884,1765986642156,-500.0,0.00018993,2]
[398907885,1765986642167,-500.0,0.00018993,7]
[398907886,1765986642179,-151.0,0.00018997,2]
[398907887,1765986642189,-500.0,0.00018999,2]
[398907888,1765986642199,-730.28,0.00018999,2]
[398907889,1765986642210,-157.65117623,0.00019,2]
[398907890,1765986642220,-105796.42293857,0.00019,2]
[398907891,1765986642230,-150.0,0.00019,2]
[398907892,1765986642240,-150.0,0.00019,2]
[398907893,1765986642251,-3754.98343141,0.00019,2]
[398907894,1765986642260,-150.0,0.00019,2]
[398907895,1765986642271,-548.229915,0.00019,2]
[398907896,1765986642282,-2881.00779891,0.00019,2]
[398907897,1765986642292,-150.0,0.00019,2]
[398907898,1765986642305,-6293.67714117,0.00019,2]
[398907899,1765986642315,-941.91499007,0.00019,2]
[398907900,1765986642326,-300.0,0.00019,2]
[398907901,1765986642336,-779.0,0.0001901,2]
[398907902,1765986642345,-779.0,0.00019056,2]
[398907903,1765986642356,-999.9999,0.00019122,2]
[398907904,1765986642365,-150.91,0.00019145,2]
[398907905,1765986642376,-553.64373807,0.00019146,2]
[398907906,1765986642386,-2458.5005735,0.00019154,2]
[398907907,1765986642399,-958.6269788,0.00019154,2]
[398907908,1765986642409,-855.42174113,0.00019164,2]
[398907909,1765986642419,-151.0,0.00019178,2]
[398907910,1765986642428,-1000.0,0.00019178,2]
[398907911,1765986642438,-20048.0,0.00019178,2]
[398907912,1765986642447,-900.0,0.00019178,2]
[398907914,1765986642457,-150.0,0.00019178,2]
[398907916,1765986642467,-1000.0,0.00019249,2]
[398907918,1765986642476,-250.0,0.00019252,2]
[398907920,1765986642488,-151.12198166,0.00019253,2]
[398907921,1765986642497,-779.0,0.0001926,2]
[398907923,1765986642507,-779.0,0.00019314,2]
[398907924,1765986642517,-500.0,0.00019321,2]
[398907926,1765986642527,-1000.0,0.00019321,2]
[398907928,1765986642538,-514.08730683,0.00019321,2]
[398907929,1765986642549,-500.0,0.00019321,2]
[398907930,1765986642560,-500.0,0.00019321,2]
[398907931,1765986642570,-500.0,0.00019321,2]
[398907932,1765986642583,-500.0,0.00019321,2]
[398907933,1765986642593,-500.0,0.00019321,2]
[398907934,1765986642602,-1000.0,0.00019321,2]
[398907935,1765986642612,-1000.0,0.00019321,2]
[398907936,1765986642621,-500.0,0.00019321,2]
[398907937,1765986642633,-500.97583461,0.00019321,2]
[398907938,1765986642649,-1000.0,0.00019321,2]
[398907939,1765986642660,-1000.0,0.00019321,2]
[398907940,1765986642671,-500.0,0.00019321,2]
[398907941,1765986642680,-366.67059237,0.00019321,2]
[398907942,1765986642696,-1000.0,0.00019321,2]
[398907944,1765986642707,-776.78624185,0.00019321,2]
[398907946,1765986642717,-500.0,0.00019321,2]
[398907948,1765986642727,-500.0,0.00019321,2]
[398907949,1765986642737,-500.0,0.00019321,2]
[398907951,1765986642747,-500.0,0.00019321,2]
[398907953,1765986642758,-500.0,0.00019321,2]
[398907955,1765986642771,-500.0,0.00019321,2]
[398907958,1765986642787,-500.0,0.00019321,2]
[398907960,1765986642808,-500.0,0.00019321,2]
[398907964,1765986642827,-500.0,0.00019321,2]
[398907965,1765986642845,-500.0,0.00019321,2]
[398907966,1765986642855,-254.07074293,0.00019321,2]
[398907967,1765986642864,-500.0,0.00019321,2]
[398907968,1765986642875,-779.0,0.00019347,2]
[398907969,1765986642884,-779.0,0.00019434,2]
[398907970,1765986642898,-1600.0,0.00019435,2]
[398907971,1765986642908,-1000.0,0.00019438,2]
[398907972,1765986642919,-5371.0,0.00019492,2]
[398907973,1765986642929,-779.0,0.00019525,2]
[398907974,1765986642939,-779.0,0.0001953,2]
[398907975,1765986642949,-779.0,0.00019614,2]
[398907976,1765986642960,-574.12855637,0.00019694,2]
[398907977,1765986642970,-2000.0,0.000197,2]
[398907978,1765986642980,-1001.749,0.00019726,2]
[398907979,1765986642991,-614.59997477,0.00019726,2]
[398907980,1765986643000,-207.1615088,0.00019726,2]
[398907981,1765986643010,-306.00436977,0.00019726,2]
[398907982,1765986643021,-779.0,0.00019765,2]
[398907983,1765986643032,-779.0,0.00019788,2]
[398907984,1765986643043,-779.0,0.00019843,2]
[398907985,1765986643054,-1000.0,0.00019868,2]
[398907986,1765986643064,-1000.0,0.00019868,2]
[398907987,1765986643074,-852.08021164,0.00019868,2]
[398907988,1765986643085,-646.74113398,0.00019868,2]
[398907989,1765986643095,-408.49128466,0.00019868,2]
[398907990,1765986643105,-1000.0,0.00019868,2]
[398907991,1765986643114,-1437.8498508,0.00019963,2]
[398907992,1765986643124,-311.1,0.00019967,2]
[398907993,1765986643134,-267.84454694,0.0002,20]
[398907994,1765986643151,-159.1,0.00020007,2]
[398907995,1765986643161,-1000.0,0.00020116,2]
[398907996,1765986643171,-500.0,0.00020143,2]
[398907997,1765986643182,-779.0,0.00020147,2]
[398907998,1765986643193,-779.0,0.00020183,2]
[398907999,1765986643203,-612.31,0.00020187,2]
[398908001,1765986643213,-3292.0,0.00020209,2]
[398908003,1765986643223,-595.37131296,0.00020242,2]
[398908005,1765986643233,-489.61,0.00020253,2]
[398908007,1765986643243,-7516.06764099,0.00020273,2]
[398908009,1765986643253,-4954.1272749,0.00020298,2]
[398908010,1765986643263,-152.0,0.00020342,3]
[398908012,1765986643275,-200.32,0.00020424,2]
[398908015,1765986643288,-229.44,0.00020441,2]
[398908017,1765986643299,-150.0,0.00020473,2]
[398908018,1765986643308,-395.31347641,0.00020567,2]
[398908019,1765986643319,-200.0,0.00020721,2]
[398908020,1765986643331,-151.12198166,0.00020734,2]
[398908021,1765986643341,-617.40005154,0.0002079,2]
[398908022,1765986643350,-1000.0,0.00020795,2]
[398908023,1765986643360,-500.0,0.00020858,7]
[398908024,1765986643371,-1607.0,0.00020867,2]
[398908025,1765986643380,-612.0,0.00020867,2]
[398908028,1765986643390,-3453.0,0.00020867,2]
[398908029,1765986643406,-1325.0,0.00020867,2]
[398908030,1765986643415,-1261.0,0.00020867,2]
[398908031,1765986643425,-564.0,0.00020867,2]
[398908032,1765986643435,-911.0,0.00020867,2]
[398908033,1765986643446,-1197.0,0.00020867,2]
[398908034,1765986643456,-150.0,0.00020867,2]
[398908035,1765986643466,-2427.0,0.00020867,2]
[398908036,1765986643477,-6524.0,0.00020867,2]
[398908037,1765986643487,-555.77,0.00020896,2]
[398908038,1765986643497,-350.0,0.00021,2]
[398908039,1765986643506,-5001.92321536,0.00021,2]
[398908040,1765986643517,-250.0,0.00021021,2]
[398908041,1765986643526,-159.1,0.00021119,2]
[398908042,1765986643536,-1000.0,0.00021132,7]
[398908043,1765986643546,-1300.0,0.00021132,7]
[398908044,1765986643556,-1000.0,0.00021174,2]
[398908045,1765986643566,-152.0,0.00021274,4]
[398908046,1765986643575,-322.6107,0.00021336,2]
[398908047,1765986643585,-640.24385345,0.00021338,2]
[398908048,1765986643595,-150.91,0.0002136,2]
[398908049,1765986643605,-6349.59,0.0002137,2]
[398908050,1765986643615,-1600.0,0.00021378,2]
[398908051,1765986643625,-500.0,0.00021551,2]
[398908052,1765986643636,-500.0,0.00021552,2]
[398908053,1765986643652,-350.0,0.00021568,2]
[398908054,1765986643662,-1000.0,0.000216,2]
[398908055,1765986643672,-1437.8498508,0.00021653,2]
[398908056,1765986643682,-380.75,0.000217,7]
[398908057,1765986643691,-10000.0,0.00021818,2]
[398908058,1765986643701,-723.73010747,0.00021886,2]
[398908059,1765986643712,-526.46,0.00021918,2]
[398908060,1765986643722,-516.82,0.00021918,2]
[398908061,1765986643732,-5000.0,0.00021918,2]
[398908062,1765986643742,-500.0,0.00021918,2]
[398908063,1765986643752,-1000.0,0.00021918,2]
[398908064,1765986643762,-151.75,0.00021918,2]
[398908065,1765986643772,-516.42,0.00021918,2]
[398908066,1765986643782,-152.39648447,0.00021944,2]
[398908067,1765986643791,-500.0,0.00021954,7]
[398908068,1765986643801,-7516.06764099,0.00021997,2]
[398908069,1765986643811,-25791.86408309,0.00022,2]
[398908070,1765986643820,-4954.1272749,0.00022016,2]
[398908071,1765986643830,-150.0,0.00022069,2]
[398908072,1765986643840,-150.0,0.00022069,2]
[398908073,1765986643851,-153.30440339,0.00022069,2]
[398908074,1765986643861,-150.0,0.00022069,2]
[398908075,1765986643871,-150.0,0.00022069,2]
[398908076,1765986643881,-150.0,0.00022069,2]
[398908077,1765986643891,-150.0,0.00022069,2]
[398908078,1765986643906,-150.0,0.00022069,2]
[398908079,1765986643916,-150.0,0.00022069,2]
[398908080,1765986643925,-500.0,0.00022069,2]
[398908081,1765986643936,-150.0,0.00022069,2]
[398908082,1765986643946,-150.0,0.00022069,2]
[398908083,1765986643956,-500.0,0.00022069,2]
[398908084,1765986643966,-150.0,0.00022069,2]
[398908085,1765986643976,-150.0,0.00022069,2]
[398908086,1765986643986,-150.0,0.00022069,2]
[398908087,1765986643995,-150.0,0.00022069,2]
[398908088,1765986644005,-150.0,0.00022069,2]
[398908089,1765986644015,-150.0,0.00022069,2]
[398908090,1765986644025,-409.15303922,0.00022116,2]
[398908091,1765986644034,-1000.0,0.00022192,2]
[398908092,1765986644044,-152.0,0.00022206,5]
[398908093,1765986644053,-150.0,0.00022206,2]
[398908094,1765986644062,-150.0,0.00022206,2]
[398908095,1765986644072,-150.0,0.00022206,2]
[398908096,1765986644082,-150.0,0.00022206,2]
[398908097,1765986644092,-500.0,0.00022206,2]
[398908098,1765986644103,-259.988155,0.00022206,2]
[398908099,1765986644112,-150.0,0.00022206,2]
[398908100,1765986644122,-500.0,0.00022206,2]
[398908101,1765986644131,-269.0,0.00022206,2]
[398908102,1765986644141,-150.0,0.00022206,2]
[398908103,1765986644156,-151.12198166,0.00022215,2]
[398908104,1765986644166,-982.0,0.00022226,2]
[398908105,1765986644176,-1000.0,0.00022228,7]
[398908106,1765986644186,-1300.0,0.00022228,7]
[398908107,1765986644195,-159.1,0.0002223,2]
[398908108,1765986644205,-487.0,0.000223,2]
[398908109,1765986644215,-305.0,0.000223,2]
[398908110,1765986644224,-1832.06919562,0.0002232,2]
[398908111,1765986644234,-200.0,0.00022343,2]
[398908112,1765986644244,-200.0,0.00022343,2]
[398908113,1765986644253,-200.0,0.00022343,2]
[398908114,1765986644263,-500.0,0.00022343,2]
[398908115,1765986644273,-200.0,0.00022343,2]
[398908116,1765986644283,-200.0,0.00022343,2]
[398908117,1765986644292,-288.52488981,0.00022343,2]
[398908118,1765986644302,-200.0,0.00022343,2]
[398908119,1765986644312,-1000.0,0.00022466,2]
[398908120,1765986644322,-266.81143522,0.0002248,2]
[398908121,1765986644332,-1045.0,0.000225,2]
[398908122,1765986644341,-150.0,0.00022517,2]
[398908123,1765986644351,-150.0,0.00022539,2]
[398908124,1765986644361,-150.0,0.00022631,2]
[398908125,1765986644371,-334.5472959,0.00022705,2]
[398908126,1765986644380,-730.28,0.00022739,2]
[398908127,1765986644390,-1000.0,0.0002274,2]
[398908128,1765986644404,-1000.0,0.0002274,2]
[398908129,1765986644414,-153.0,0.00022776,2]
[398908130,1765986644423,-153.0,0.00022776,2]
[398908131,1765986644433,-153.0,0.00022776,2]
[398908132,1765986644443,-219.98192122,0.00022776,2]
[398908133,1765986644453,-471.02407788,0.000228,2]
[398908134,1765986644463,-500.0,0.00022968,2]
[398908135,1765986644472,-1003.18586646,0.00023,2]
[398908136,1765986644482,-1018.34771087,0.00023,3]
[398908137,1765986644492,-806.0,0.00023,2]
[398908138,1765986644501,-2832.444,0.00023,2]
[398908139,1765986644511,-481.46730423,0.00023,7]
[398908140,1765986644521,-400.0,0.00023,2]
[398908141,1765986644531,-359.51592027,0.0002301,120]